[Event "RUS-chTW Premier 2019"]
[Site "Sochi"]
[Date "2019.05.09"]
[Round "8.4"]
[White "Kovanova, Baira"]
[Black "Shamsutdinova, Karina"]
[Result "1-0"]
[ECO "A05"]
[WhiteElo "2349"]
[BlackElo "1684"]
[Annotator "NA"]
[PlyCount "73"]
[EventDate "2019.05.01"]
[EventType "team-tourn"]
[EventCountry "RUS"]
[SourceTitle "playchess.com"]
[Source "ChessBase"]
[SourceQuality "1"]
[TimeControl "40/5400+30:1800+30"]

1. Nf3 {[%emt 0:00:00]} Nf6 {[%emt 0:00:00]} 2. g3 {[%emt 0:00:07]} g6 {[%emt 0:00:00]} 3. b3 {[%emt 0:04:16]} Bg7 {[%emt 0:01:09]} 4. Bb2 {[%emt 0:00:05]} O-O {[%emt 0:02:03]} 5. Bg2 {[%emt 0:00:03]} d5 {[%emt 0:03:59]} 6. c4 {[%emt 0:01:04]} e6 {[%emt 0:04:43]} 7. O-O {[%emt 0:01:40]} c5 {[%emt 0:06:00]} 8. cxd5 {[%emt 0:03:26]} exd5 {[%emt 0:02:09]} 9. d4 {[%emt 0:00:10]} b6 {[%emt 0:05:17]} 10. Nc3 {[%emt 0:06:43]} Bb7 {[%emt 0:10:44]} 11. Rc1 {[%emt 0:04:14]} Bh6 {[%emt 0:09:28]} 12. e3 {[%emt 0:03:44]} Ba6 {[%emt 0:07:50]} 13. Re1 {[%emt 0:01:45]} c4 {[%emt 0:05:57]} 14. bxc4 {[%emt 0:02:05]} Bxc4 {[%emt 0:00:31]} 15. Ne5 {[%emt 0:00:23]} b5 {[%emt 0:05:13]} 16. Nxc4 {[%emt 0:02:34]} bxc4 {[%emt 0:00:01]} 17. Qf3 {[%emt 0:00:14]} Nbd7 {[%emt 0:10:26]} 18. Nxd5 {[%emt 0:03:27]} Nxd5 {[%emt 0:01:53]} 19. Qxd5 {[%emt 0:02:55] Double Attack} Rb8 {[%emt 0:03:31]} 20. Ba3 {[%emt 0:01:08]} Nb6 {[%emt 0:01:44]} 21. Qa5 {[%emt 0:02:38]} Re8 $18 {[%emt 0:01:30]} 22. Bc5 {[%emt 0:04:32]} Qd7 {[%emt 0:04:27]} 23. Rb1 {[%emt 0:03:51]} Qc7 {[%emt 0:04:32]} 24. Rec1 {[%emt 0:02:19]} Rec8 {[%emt 0:02:30]} 25. Bf1 {[%emt 0:04:52]} Qc6 {[%emt 0:05:09]} 26. Qxa7 {[%emt 0:03:53]} Nd7 {[%emt 0:01:12]} 27. Bh3 {[%emt 0:09:00]} f5 {[%emt 0:00:46]} 28. Bg2 {[%emt 0:02:32]} Qe6 {[%emt 0:00:27]} 29. Rxb8 {[%emt 0:06:24]} Rxb8 {[%emt 0:00:25]} 30. Bf1 {[%emt 0:00:25]} Qe8 {[%emt 0:00:53]} 31. Bd6 {[%emt 0:04:41]} Rc8 {[%emt 0:00:26]} 32. Rxc4 {[%emt 0:00:47]} Ra8 {[%emt 0:00:21]} 33. Qb7 {[%emt 0:00:17]} Rd8 {[%emt 0:00:39]} 34. Rc7 {[%emt 0:00:50]} Rb8 {[%emt 0:00:06]} 35. Qd5+ {[%emt 0:00:09]} Kh8 {[%emt 0:00:10]} 36. Rxd7 {[%emt 0:00:20]} Bg7 {[%emt 0:01:08]} 37. Bxb8 {[%emt 0:00:07]} 1-0

[Event "RUS-chTW Premier 2019"]
[Site "Sochi"]
[Date "2019.05.09"]
[Round "8.5"]
[White "Bodnaruk, Anastasia"]
[Black "Grabuzova, Tatiana"]
[Result "1-0"]
[ECO "C11"]
[WhiteElo "2431"]
[BlackElo "2314"]
[Annotator "NA"]
[PlyCount "77"]
[EventDate "2019.05.01"]
[EventType "team-tourn"]
[EventCountry "RUS"]
[SourceTitle "playchess.com"]
[Source "ChessBase"]
[SourceQuality "1"]
[TimeControl "40/5400+30:1800+30"]

1. e4 {[%emt 0:00:00]} e6 {[%emt 0:00:00]} 2. d4 {[%emt 0:00:00]} d5 {[%emt 0:00:00]} 3. Nc3 {[%emt 0:00:00]} Nf6 {[%emt 0:00:00]} 4. e5 {[%emt 0:00:00]} Nfd7 {[%emt 0:00:00]} 5. f4 {[%emt 0:00:00]} c5 {[%emt 0:00:00]} 6. Nf3 {[%emt 0:00:00]} Be7 {[%emt 0:00:15] C11: French: Classical System: 4 e5 and 4 Bg5 dxe4} (6... Nc6 7. Be3 cxd4 8. Nxd4 Qb6 9. Qd2 Qxb2 10. Rb1 Qa3 11. Bb5 Nxd4 12. Bxd4 a6 13. Bxd7+ Bxd7 14. Rb3 Qe7 15. Rxb7 Rc8 16. Qe3 Qd8 17. O-O Rc4 18. Rfb1 Be7 19. f5 {½-½ (31) Aronian,L (2763)-Vallejo Pons,F (2693) Karlsruhe/Baden Baden 2019}) 7. Be3 {[%emt 0:00:43]} b6 {[%emt 0:00:07]} 8. Qd2 {[%emt 0:01:39]} O-O {[%emt 0:00:45]} 9. Be2 {[%emt 0:12:14]} Nc6 {[%emt 0:02:17]} 10. O-O {[%emt 0:01:10]} cxd4 {[%emt 0:16:14]} 11. Nxd4 {[%emt 0:00:06]} Nxd4 {[%emt 0:00:05]} 12. Bxd4 {[%emt 0:00:05]} Nb8 {[%emt 0:00:10]} 13. Nd1 {[%emt 0:09:03]} Nc6 {[%emt 0:09:37]} 14. c3 {[%emt 0:00:05]} f6 $146 {[%emt 0:00:51]} ({Predecessor:} 14... Nxd4 15. cxd4 Bd7 16. Ne3 b5 {1-0 (35) Ivic,V (2487)-Cabarkapa,N (2443) Kragujevac 2019}) 15. exf6 {[%emt 0:01:52]} Bxf6 {[%emt 0:00:10]} 16. Ne3 {[%emt 0:22:42]} Nxd4 {[%emt 0:02:23]} 17. cxd4 {[%emt 0:00:12]} b5 {[%emt 0:00:08]} 18. Ng4 {[%emt 0:03:48]} Qb6 {[%emt 0:00:51]} 19. Nxf6+ {[%emt 0:05:28]} Rxf6 {[%emt 0:00:17]} 20. Rac1 {[%emt 0:01:58]} b4 {[%emt 0:05:03]} 21. Rc5 {[%emt 0:06:02]} Ba6 {[%emt 0:00:36]} 22. g3 {[%emt 0:10:27]} Raf8 {[%emt 0:07:00]} 23. Rfc1 {[%emt 0:00:36]} Bxe2 {[%emt 0:00:55]} 24. Qxe2 {[%emt 0:00:03]} g5 {[%emt 0:02:21]} (24... h6 $16) 25. fxg5 {[%emt 0:06:25]} Rf2 {[%emt 0:02:45]} 26. Qxf2 {[%emt 0:00:45]} Rxf2 {[%emt 0:00:06]} 27. Kxf2 {[%emt 0:00:01]} Kg7 $18 {[%emt 0:06:10]} 28. Ke3 $2 {[%emt 0:01:35]} (28. h4 $18 {is more deadly.}) 28... Qd8 {[%emt 0:00:30]} 29. h4 {[%emt 0:01:28]} Qd6 {[%emt 0:03:31]} 30. Kf3 {[%emt 0:02:42]} Qf8+ {[%emt 0:04:02]} 31. Kg2 {[%emt 0:00:01]} Qf5 {[%emt 0:00:08]} 32. Rc7+ {[%emt 0:04:58]} Kg6 {[%emt 0:02:14]} 33. Rf1 {[%emt 0:00:39]} Qe4+ {[%emt 0:00:07]} 34. Kh3 {[%emt 0:01:06]} Kh5 {[%emt 0:00:17]} 35. Rxh7+ {[%emt 0:02:36]} Kg6 {[%emt 0:00:14]} 36. Rhf7 {[%emt 0:01:40]} Kh5 {[%emt 0:03:51]} 37. R7f6 {[%emt 0:00:24]} Qg4+ {[%emt 0:01:16]} 38. Kh2 {[%emt 0:00:05]} Qe2+ {[%emt 0:00:36]} 39. R1f2 {[%emt 0:00:08]} 1-0

[Event "RUS-chTW Premier 2019"]
[Site "Sochi"]
[Date "2019.05.09"]
[Round "8.6"]
[White "Zaiatz, Elena"]
[Black "Ovod, Evgenija"]
[Result "1/2-1/2"]
[ECO "A06"]
[WhiteElo "2345"]
[BlackElo "2362"]
[Annotator "ChessBase"]
[PlyCount "141"]
[EventDate "2019.05.01"]
[EventType "team-tourn"]
[EventCountry "RUS"]
[SourceTitle "playchess.com"]
[Source "ChessBase"]
[SourceQuality "1"]
[TimeControl "40/5400+30:1800+30"]

1. Nf3 {[%emt 0:00:00]} d5 {[%emt 0:00:00]} 2. g3 {[%emt 0:00:00]} Bg4 {[%emt 0:00:00]} 3. Bg2 {[%emt 0:00:00]} c6 {[%emt 0:00:00]} 4. O-O {[%emt 0:00:00]} Nd7 {[%emt 0:00:02]} 5. d4 {[%emt 0:00:05]} e6 {[%emt 0:00:10]} 6. h3 {[%emt 0:03:18]} Bxf3 {[%emt 0:05:40]} 7. exf3 {[%emt 0:07:40]} g6 {[%emt 0:05:54]} 8. c3 {[%emt 0:02:37]} Bg7 {[%emt 0:00:33]} 9. Re1 {[%emt 0:00:05]} Ne7 {[%emt 0:00:49]} 10. Bg5 {[%emt 0:00:13]} O-O {[%emt 0:05:25]} 11. Qd2 {[%emt 0:06:23]} f6 {[%emt 0:19:10]} 12. Bf4 {[%emt 0:03:28]} e5 {[%emt 0:02:24]} 13. dxe5 {[%emt 0:00:40]} Nxe5 {[%emt 0:00:17]} 14. Na3 {[%emt 0:00:06]} Nf5 {[%emt 0:12:18]} 15. Rad1 {[%emt 0:22:15]} Rf7 {[%emt 0:10:56]} 16. h4 {[%emt 0:12:14]} Qf8 {[%emt 0:02:03]} 17. Nc2 {[%emt 0:00:47]} Nc4 {[%emt 0:07:34]} 18. Qc1 {[%emt 0:00:05]} Bh6 {[%emt 0:01:25]} 19. Bxh6 {[%emt 0:04:01]} Qxh6 {[%emt 0:00:18]} 20. f4 {[%emt 0:00:05]} Qf8 {[%emt 0:00:46]} 21. Nb4 {[%emt 0:05:39]} Re8 {[%emt 0:06:34]} 22. b3 {[%emt 0:05:51]} Ncd6 {[%emt 0:01:24]} 23. Nxd5 {[%emt 0:03:27]} Rxe1+ {[%emt 0:01:53]} 24. Rxe1 {[%emt 0:00:05]} cxd5 {[%emt 0:00:03]} 25. Bxd5 {[%emt 0:00:04]} Kg7 {[%emt 0:00:04]} 26. Bxf7 {[%emt 0:00:10]} Nxf7 {[%emt 0:00:22]} 27. Qd1 {[%emt 0:06:38]} Qc8 {[%emt 0:07:06]} 28. c4 {[%emt 0:01:03]} h5 {[%emt 0:00:37]} 29. Qd5 {[%emt 0:01:53]} b6 {[%emt 0:00:09]} 30. Re6 {[%emt 0:01:05]} Qf8 {[%emt 0:02:00]} 31. Kg2 {[%emt 0:04:38]} Qa3 {[%emt 0:00:45]} 32. Qd2 {[%emt 0:00:05]} Qc5 {[%emt 0:00:40]} 33. Qc3 {[%emt 0:01:45]} Nd4 {[%emt 0:00:24]} 34. b4 {[%emt 0:01:05]} Qc8 {[%emt 0:02:02]} 35. Re1 {[%emt 0:01:26]} Qc6+ {[%emt 0:00:26]} 36. f3 {[%emt 0:00:12]} Nb5 {[%emt 0:01:47]} 37. Qd3 {[%emt 0:02:02]} Nbd6 {[%emt 0:00:08]} 38. Rc1 {[%emt 0:00:52]} Nf5 {[%emt 0:02:05]} 39. Kf2 {[%emt 0:03:06]} a5 {[%emt 0:00:30]} 40. a3 {[%emt 0:00:00]} axb4 {[%emt 0:00:00]} 41. axb4 {[%emt 0:00:31]} Qa4 {[%emt 0:03:43]} 42. Qd2 {[%emt 0:09:39]} Qa7 {[%emt 0:09:59]} 43. Qb2 {[%emt 0:11:16]} Qd7 {[%emt 0:01:52]} 44. Qc3 {[%emt 0:00:31]} Ne7 {[%emt 0:03:46]} 45. Kg2 {[%emt 0:03:49]} Nc6 {[%emt 0:01:58]} 46. Rc2 {[%emt 0:00:52]} Nh6 {[%emt 0:02:30]} 47. Rd2 {[%emt 0:01:28]} Qe7 {[%emt 0:00:48]} 48. b5 {[%emt 0:02:13]} Na5 {[%emt 0:00:48]} 49. c5 {[%emt 0:00:07]} Qxc5 {[%emt 0:00:07]} 50. Qxc5 {[%emt 0:00:03]} bxc5 {[%emt 0:00:04]} 51. Rd7+ {[%emt 0:00:03]} Nf7 {[%emt 0:04:56]} 52. g4 {[%emt 0:01:41]} Kf8 {[%emt 0:04:14]} 53. Ra7 {[%emt 0:03:55]} Nc4 {[%emt 0:00:32]} 54. Rc7 {[%emt 0:00:04]} Nfd6 {[%emt 0:03:15]} 55. Rxc5 {[%emt 0:00:11]} f5 {[%emt 0:00:08]} 56. gxh5 {[%emt 0:00:18]} gxh5 {[%emt 0:00:05]} 57. Kf2 {[%emt 0:00:03]} Ke7 {[%emt 0:00:57]} 58. Ke2 {[%emt 0:00:15]} Nb6 {[%emt 0:01:55]} 59. Rc7+ {[%emt 0:01:15]} Ke6 {[%emt 0:00:23]} 60. Rh7 {[%emt 0:00:26]} Nd5 {[%emt 0:00:12]} 61. b6 {[%emt 0:00:21]} Nxb6 {[%emt 0:00:17]} 62. Rh6+ {[%emt 0:00:57]} Ke7 {[%emt 0:00:15]} 63. Rxh5 {[%emt 0:00:25]} Nd5 {[%emt 0:00:08]} 64. Rg5 {[%emt 0:01:45]} Nxf4+ {[%emt 0:00:12]} 65. Ke3 {[%emt 0:00:07]} Ne6 {[%emt 0:00:14]} 66. Rg1 {[%emt 0:00:36]} f4+ {[%emt 0:01:33]} 67. Kd3 {[%emt 0:01:10]} Kf6 {[%emt 0:00:10]} 68. Rg8 {[%emt 0:01:26]} Kf7 {[%emt 0:01:48]} 69. Rg4 {[%emt 0:00:10]} Nf5 {[%emt 0:00:39]} 70. Ke4 {[%emt 0:00:32]} Kf6 {[%emt 0:00:10]} 71. Rxf4 {Ke5+} 1/2-1/2

[Event "RUS-chTW Premier 2019"]
[Site "Sochi"]
[Date "2019.05.09"]
[Round "8.7"]
[White "Styazhkina, Anna"]
[Black "Tsiganova, Monika"]
[Result "1-0"]
[ECO "B53"]
[WhiteElo "2272"]
[BlackElo "2052"]
[Annotator "NA"]
[PlyCount "73"]
[EventDate "2019.05.01"]
[EventType "team-tourn"]
[EventCountry "RUS"]
[SourceTitle "playchess.com"]
[Source "ChessBase"]
[SourceQuality "1"]
[TimeControl "40/5400+30:1800+30"]

1. e4 {[%emt 0:00:00]} c5 {[%emt 0:00:00]} 2. Nf3 {[%emt 0:00:06]} d6 {[%emt 0:00:00]} 3. d4 {[%emt 0:00:25]} cxd4 {[%emt 0:00:06]} 4. Qxd4 {[%emt 0:00:09]} Nc6 {[%emt 0:00:18]} 5. Bb5 {[%emt 0:00:27]} Bd7 {[%emt 0:00:16]} 6. Qd3 {[%emt 0:00:11]} Nf6 {[%emt 0:00:35]} 7. c4 {[%emt 0:00:26]} a6 {[%emt 0:02:03]} 8. Bxc6 {[%emt 0:00:14]} Bxc6 {[%emt 0:00:11]} 9. Nc3 {[%emt 0:00:11]} e6 {[%emt 0:01:28]} 10. O-O {[%emt 0:00:48]} Be7 {[%emt 0:00:10]} 11. Nd4 {[%emt 0:05:36]} Qc7 {[%emt 0:03:38]} 12. b3 {[%emt 0:07:24]} O-O {[%emt 0:00:37]} 13. Bb2 {[%emt 0:00:12]} Rfd8 {[%emt 0:09:40]} 14. Rac1 {[%emt 0:03:32]} Nd7 {[%emt 0:02:43]} 15. Nd5 {[%emt 0:29:21]} exd5 {[%emt 0:01:42]} 16. cxd5 {[%emt 0:00:32]} Nc5 {[%emt 0:15:54]} 17. Qg3 {[%emt 0:05:00]} Nxe4 {[%emt 0:10:38]} 18. Qf4 {[%emt 0:10:21]} Bg5 {[%emt 0:18:41]} 19. Qxe4 {[%emt 0:01:15]} Bxc1 {[%emt 0:00:14]} 20. Rxc1 {[%emt 0:00:28]} Re8 {[%emt 0:00:24]} 21. Qb1 {[%emt 0:01:40]} Re5 {[%emt 0:12:46]} 22. dxc6 {[%emt 0:01:06]} bxc6 {[%emt 0:03:53]} 23. Nf5 {[%emt 0:04:11]} Re2 {[%emt 0:03:34]} 24. Bxg7 {[%emt 0:00:56]} Qa5 {[%emt 0:02:51]} 25. Bc3 {[%emt 0:01:45]} Qb6 {[%emt 0:02:12]} 26. Rf1 {[%emt 0:04:25]} Re6 {[%emt 0:04:10]} 27. Qd3 {[%emt 0:00:54]} Rae8 {[%emt 0:00:37]} 28. Ng7 {[%emt 0:01:54]} Qb5 {[%emt 0:00:22]} 29. Qxb5 {[%emt 0:01:16]} axb5 {[%emt 0:00:11]} 30. Nxe8 {[%emt 0:00:06]} Rxe8 {[%emt 0:00:04]} 31. Rd1 {[%emt 0:00:35]} d5 {[%emt 0:00:31]} 32. Kf1 {[%emt 0:00:22]} Ra8 {[%emt 0:00:17]} 33. Rd2 {[%emt 0:00:10]} Kf8 {[%emt 0:00:29]} 34. Bb4+ {[%emt 0:00:22]} Kg7 {[%emt 0:00:14]} 35. Rc2 {[%emt 0:00:16]} Ra6 {[%emt 0:00:10]} 36. Ke2 {[%emt 0:00:11]} Kf6 {[%emt 0:00:08]} 37. Kd3 {[%emt 0:00:09]} 1-0

[Event "RUS-chTW Premier 2019"]
[Site "Sochi"]
[Date "2019.05.09"]
[Round "8.9"]
[White "Ambartsumova, Karina"]
[Black "Kosteniuk, Alexandra"]
[Result "1/2-1/2"]
[ECO "D02"]
[WhiteElo "2364"]
[BlackElo "2546"]
[Annotator "ChessBase"]
[PlyCount "44"]
[EventDate "2019.05.01"]
[EventType "team-tourn"]
[EventCountry "RUS"]
[SourceTitle "playchess.com"]
[Source "ChessBase"]
[SourceQuality "1"]
[TimeControl "40/5400+30:1800+30"]

1. Nf3 {[%emt 0:00:00]} d5 {[%emt 0:00:00]} 2. d4 {[%emt 0:00:01]} Nf6 {[%emt 0:00:00]} 3. g3 {[%emt 0:00:42]} b5 {[%emt 0:03:03]} 4. Bg2 {[%emt 0:00:40]} Bb7 {[%emt 0:00:25]} 5. O-O {[%emt 0:00:54]} e6 {[%emt 0:00:21]} 6. c3 {[%emt 0:03:55]} a5 {[%emt 0:03:57]} 7. a4 {[%emt 0:11:41]} b4 {[%emt 0:01:29]} 8. Nbd2 {[%emt 0:02:30]} c5 {[%emt 0:04:19]} 9. c4 {[%emt 0:08:02]} Nbd7 {[%emt 0:07:16]} 10. Re1 {[%emt 0:16:36]} cxd4 {[%emt 0:05:34]} 11. Nxd4 {[%emt 0:03:46]} Qb6 {[%emt 0:01:26]} 12. Nb5 {[%emt 0:03:30]} Bc5 {[%emt 0:05:22]} 13. e3 {[%emt 0:00:38]} O-O {[%emt 0:00:24]} 14. b3 {[%emt 0:04:39]} Ne5 {[%emt 0:17:24]} 15. Bb2 {[%emt 0:07:28]} Nd3 {[%emt 0:06:51]} 16. Bxf6 {[%emt 0:00:15]} gxf6 {[%emt 0:00:04]} 17. Qg4+ {[%emt 0:01:54]} Kh8 {[%emt 0:00:05]} 18. Qh4 {[%emt 0:01:04]} Nxe1 {[%emt 0:07:03]} 19. Qxf6+ {[%emt 0:00:07]} Kg8 {[%emt 0:00:03]} 20. Qg5+ {[%emt 0:00:08]} Kh8 {[%emt 0:00:04]} 21. Qf6+ {[%emt 0:00:04]} Kg8 {[%emt 0:00:03]} 22. Qg5+ {[%emt 0:00:06]} Kh8 {[%emt 0:00:03]} 1/2-1/2

[Event "RUS-chTW Premier 2019"]
[Site "Sochi"]
[Date "2019.05.09"]
[Round "8.10"]
[White "Kovalevskaya, Ekaterina"]
[Black "Markelova, Lubov"]
[Result "1-0"]
[ECO "B10"]
[WhiteElo "2413"]
[BlackElo "2199"]
[Annotator "ChessBase"]
[PlyCount "139"]
[EventDate "2019.05.01"]
[EventType "team-tourn"]
[EventCountry "RUS"]
[SourceTitle "playchess.com"]
[Source "ChessBase"]
[SourceQuality "1"]
[TimeControl "40/5400+30:1800+30"]

1. c4 {[%emt 0:00:00]} c6 {[%emt 0:00:01]} 2. e4 {[%emt 0:00:15]} d5 {[%emt 0:01:48]} 3. exd5 {[%emt 0:00:10]} cxd5 {[%emt 0:00:04]} 4. d4 {[%emt 0:00:06]} dxc4 {[%emt 0:05:40]} 5. Bxc4 {[%emt 0:01:03]} e6 {[%emt 0:00:17]} 6. Nf3 {[%emt 0:00:55]} Nf6 {[%emt 0:00:09]} 7. O-O {[%emt 0:00:13]} Be7 {[%emt 0:00:44]} 8. Nc3 {[%emt 0:02:28]} Nc6 {[%emt 0:00:49]} 9. a3 {[%emt 0:07:16]} O-O {[%emt 0:00:26]} 10. Bf4 {[%emt 0:00:19]} b6 {[%emt 0:20:23]} 11. Rc1 {[%emt 0:27:22]} Bb7 {[%emt 0:01:25]} 12. Ba2 {[%emt 0:00:53]} Rc8 {[%emt 0:02:48]} 13. Qd3 {[%emt 0:03:07]} Re8 {[%emt 0:14:49]} 14. Rfd1 {[%emt 0:02:04]} Bf8 {[%emt 0:05:02]} 15. Bg5 {[%emt 0:06:50]} Ne7 {[%emt 0:04:48]} 16. h4 {[%emt 0:12:03]} h6 {[%emt 0:06:22]} 17. Bxf6 {[%emt 0:08:14]} gxf6 {[%emt 0:01:32]} 18. Ne4 {[%emt 0:01:57]} Bg7 {[%emt 0:09:55]} 19. Rxc8 {[%emt 0:01:32]} Nxc8 {[%emt 0:01:10]} 20. Ng3 {[%emt 0:01:19]} Bd5 {[%emt 0:04:35]} 21. Bxd5 {[%emt 0:04:04]} Qxd5 {[%emt 0:00:39]} 22. Ne2 {[%emt 0:04:00]} Ne7 {[%emt 0:05:37]} 23. Nc3 {[%emt 0:04:20]} Qh5 {[%emt 0:02:26]} 24. Qb5 {[%emt 0:04:08]} Qxb5 {[%emt 0:00:11]} 25. Nxb5 {[%emt 0:00:05]} a6 {[%emt 0:01:40]} 26. Nc7 {[%emt 0:00:23]} Rc8 {[%emt 0:01:11]} 27. Nxa6 {[%emt 0:00:05]} Rc2 {[%emt 0:01:11]} 28. Rd2 {[%emt 0:02:00]} Rxd2 {[%emt 0:01:30]} 29. Nxd2 {[%emt 0:00:02]} f5 {[%emt 0:00:14]} 30. Nf3 {[%emt 0:00:13]} Nc6 {[%emt 0:00:38]} 31. d5 {[%emt 0:04:59]} exd5 {[%emt 0:00:05]} 32. b4 {[%emt 0:00:03]} Bb2 {[%emt 0:01:52]} 33. a4 {[%emt 0:01:09]} Bc3 {[%emt 0:00:16]} 34. b5 {[%emt 0:00:13]} Na5 {[%emt 0:01:20]} 35. Nc7 {[%emt 0:00:41]} d4 {[%emt 0:00:33]} 36. Nd5 {[%emt 0:00:07]} Nc4 {[%emt 0:00:28]} 37. Kf1 {[%emt 0:00:59]} f6 {[%emt 0:02:15]} 38. Ke2 {[%emt 0:02:13]} Kf7 {[%emt 0:00:20]} 39. Nxd4 {[%emt 0:00:48]} Bxd4 {[%emt 0:00:59]} 40. Kd3 {[%emt 0:00:00]} Bxf2 {[%emt 0:00:00]} 41. Kxc4 {[%emt 0:00:08]} Ke6 {[%emt 0:05:38]} 42. Nf4+ {[%emt 0:05:57]} Kd6 {[%emt 0:01:16]} 43. h5 {[%emt 0:00:08]} Bg1 {[%emt 0:02:56]} 44. Ne2 {[%emt 0:07:40]} Be3 {[%emt 0:03:34]} 45. Kd3 {[%emt 0:03:34]} Bf2 {[%emt 0:02:20]} 46. Nf4 {[%emt 0:08:14]} Ke5 {[%emt 0:01:04]} 47. Ng6+ {[%emt 0:00:10]} Ke6 {[%emt 0:04:34]} 48. Ke2 {[%emt 0:01:23]} Bg3 {[%emt 0:03:59]} 49. Ke3 {[%emt 0:06:28]} Bd6 {[%emt 0:00:08]} 50. Kd4 {[%emt 0:00:48]} Bc5+ {[%emt 0:01:35]} 51. Kd3 {[%emt 0:00:15]} Bd6 {[%emt 0:00:45]} 52. Nh4 {[%emt 0:00:22]} Bg3 {[%emt 0:01:36]} 53. Nf3 {[%emt 0:00:08]} Bf2 {[%emt 0:01:07]} 54. Nd2 {[%emt 0:01:43]} Ke5 {[%emt 0:03:38]} 55. Ke2 {[%emt 0:00:15]} Bc5 {[%emt 0:00:29]} 56. Nb3 {[%emt 0:00:49]} Kd5 {[%emt 0:02:46]} 57. a5 {[%emt 0:00:36]} bxa5 {[%emt 0:01:04]} 58. Nxa5 {[%emt 0:00:01]} Ke4 {[%emt 0:02:46]} 59. Nb7 {[%emt 0:01:08]} Ba7 {[%emt 0:01:24]} 60. Nd6+ {[%emt 0:00:41]} Kf4 {[%emt 0:00:19]} 61. Nf7 {[%emt 0:00:32]} Kg4 {[%emt 0:00:37]} 62. Nxh6+ {[%emt 0:00:09]} Kg5 {[%emt 0:00:39]} 63. Ng8 {[%emt 0:01:03]} Kxh5 {[%emt 0:00:18]} 64. Kf3 {[%emt 0:00:12]} Kg5 {[%emt 0:00:38]} 65. Ne7 {[%emt 0:00:12]} f4 {[%emt 0:00:30]} 66. Nd5 {[%emt 0:00:30]} Bb8 {[%emt 0:00:33]} 67. b6 {[%emt 0:00:06]} Kf5 {[%emt 0:00:27]} 68. Ne7+ {[%emt 0:00:15]} Ke6 {[%emt 0:00:11]} 69. Nc6 {[%emt 0:00:05]} Bc7 70. Ke4 {Kd5+} 1-0